[Event "Bijnor Open 2024"]
[Site "Bijnor"]
[Date "2024.03.17"]
[Round "1.1"]
[White "Kranti Kumar Gupta"]
[Black "Srihari L R"]
[Result "0-1"]
[ECO "B43"]
[WhiteElo "1488"]
[BlackElo "2490"]
[Annotator "TA"]
[PlyCount "112"]
[EventDate "2024.03.17"]
[EventCountry "IND"]
[SourceTitle "playchess.com"]
[Source "ChessBase"]
[SourceQuality "1"]
[TimeControl "5400+30"]

{[%evp 9,112,34,34,33,25,12,36,36,73,73,75,67,72,56,60,56,88,39,56,35,60,24,81,0,0,0,0,0,6,-54,-60,-61,-55,-65,-53,-105,-111,-105,-93,-115,-108,-114,-116,-123,-102,-141,-137,-143,-134,-204,-204,-256,-130,-222,-210,-236,-163,-206,-205,-282,-271,-299,-299,-311,-305,-277,-291,-469,-464,-465,-568,-559,-565,-576,-554,-881,-882,-1214,-1202,-914,-844,-1392,-1333,-1189,-1088,-29961,-29966,-29971,-29973,-29973,-29974,-29971,-29972,-29982,-29983,-29983,-29984,-29989,-29990,-29990,-29991,-29994,-29995,-29998,-29999]} 1. e4 {[%emt 0:00:04]} c5 {[%emt 0:00:43]} 2. Nf3 {[%emt 0:01:22]} e6 {[%emt 0:00:08]} 3. d4 {[%emt 0:00:56]} cxd4 {[%emt 0:00:27]} 4. Nxd4 {[%emt 0:00:16]} a6 {[%emt 0:00:09]} 5. Nc3 {[%emt 0:00:23]} Qc7 {[%emt 0:00:30]} 6. Qg4 {[%emt 0:01:16]} Nf6 {[%emt 0:01:11]} 7. Qg3 {[%emt 0:00:29]} Qxg3 {[%emt 0:02:05]} 8. hxg3 {[%emt 0:00:03] Weiß steht etwas besser.} d6 {[%emt 0:00:41]} 9. f3 {[%emt 0:00:52]} Be7 {[%emt 0:04:53]} 10. g4 {[%emt 0:00:14]} Nc6 {[%emt 0:00:06]} 11. Be3 {[%emt 0:01:36]} Nxd4 {[%emt 0:04:58]} 12. Bxd4 {[%emt 0:00:03]} e5 {[%emt 0:00:10]} 13. Bb6 {[%emt 0:00:42]} (13. Be3 $16) 13... Be6 $14 {[%emt 0:00:11]} 14. O-O-O {[%emt 0:00:06]} Rc8 {[%emt 0:01:29]} 15. a4 {[%emt 0:00:16]} Rc6 {[%emt 0:00:32]} (15... h5 $11) 16. a5 {[%emt 0:00:22]} (16. Be3 $16) 16... Nd7 $11 {[%emt 0:00:19]} 17. Be3 {[%emt 0:02:10] Lässt Bg5 nicht zu} Bd8 {[%emt 0:02:27]} 18. Nd5 {[%emt 0:00:54]} Bxa5 {[%emt 0:00:50]} 19. c4 {[%emt 0:00:27]} (19. b4 $11 Bd8 20. b5 axb5 21. Bxb5) 19... Bxd5 $15 {[%emt 0:07:26]} 20. exd5 {[%emt 0:00:09]} Rc8 {[%emt 0:00:18]} 21. Kb1 {[%emt 0:00:18]} Bb6 {[%emt 0:00:33]} 22. Bxb6 {[%emt 0:00:37] Die Straße ins Nirgendwo für Weiß.} (22. Bd2 $15) 22... Nxb6 $17 {[%emt 0:00:02]} 23. b3 {[%emt 0:00:07]} Ke7 {[%emt 0:01:31]} 24. g3 {[%emt 0:01:12]} h6 {[%emt 0:01:41]} 25. f4 {[%emt 0:00:02]} Nd7 {[%emt 0:00:23]} 26. Bd3 {[%emt 0:00:20]} g6 {[%emt 0:00:20]} 27. Rd2 {[%emt 0:00:25]} Kf6 {[%emt 0:00:29]} 28. Rdh2 {[%emt 0:00:04] [#]} Kg7 $1 {[%emt 0:00:13]} 29. f5 {[%emt 0:00:17]} (29. Kc2 $17) 29... Nf6 {[%emt 0:01:53]} 30. Be2 {[%emt 0:00:25]} Ne4 {[%emt 0:01:19]} (30... g5 $19 {[%cal Ob7b5] ...b5! ist eine echte Drohung.} 31. Kb2 b5) 31. Rg2 {[%emt 0:00:32] [#]} (31. Bd3 $17 gxf5 (31... Nxg3 $2 {ist das falsche Schlagen.} 32. Rg1 $16) 32. gxf5) 31... b5 $1 $19 {[%emt 0:03:21][%mdl 512]} 32. Kb2 {[%emt 0:00:43]} (32. Kc2 bxc4) 32... b4 {[%emt 0:00:52]} 33. Ra1 {[%emt 0:00:37]} Ra8 {[%emt 0:00:49]} 34. Ra5 {[%emt 0:01:55]} Kf6 {[%emt 0:01:16]} 35. Bd3 {[%emt 0:00:49]} Nc5 {[%emt 0:00:25]} ({Weniger gut wäre} 35... gxf5 36. Bxe4 fxe4 37. Re2 $17) 36. Bc2 {[%emt 0:00:15]} Kg5 {[%emt 0:01:53]} 37. Rf2 {[%emt 0:00:32]} e4 {[%emt 0:02:31]} 38. fxg6 $2 {[%emt 0:00:14]} (38. Ra1) 38... fxg6 {[%emt 0:00:06]} ({Nicht} 38... Kxg4 39. gxf7 Rhf8 40. Rf6 $14) 39. Rxc5 {[%emt 0:00:03]} dxc5 {[%emt 0:00:16]} 40. Bxe4 {[%emt 0:00:14]} Kxg4 {[%emt 0:01:12]} 41. Bxg6 {[%emt 0:00:18]} Kxg3 {[%emt 0:00:04][%mdl 4096] Endspiel. KRR-KRB} 42. Rf6 {[%emt 0:00:09]} h5 {[%emt 0:00:05] Und jetzt ...h4 wäre schön.} 43. d6 {[%emt 0:00:07]} h4 {[%emt 0:00:16]} 44. Be4 {[%emt 1:29:35]} Rad8 {[%emt 0:00:27] Droht ...h3 und aus.} 45. Bc6 {[%emt 0:00:00]} h3 {[%emt 0:00:02]} 46. d7 {[%emt 0:00:00]} h2 {[%emt 0:00:03]} 47. Rg6+ {[%emt 0:00:00]} Kf4 {[%emt 0:00:19] Schwarz setzt Matt.} 48. Rf6+ {[%emt 0:00:00]} Ke5 {[%emt 0:00:08]} 49. Rf1 {[%emt 0:00:00] [#]} Rxd7 $3 {[%emt 0:00:14][%mdl 512]} 50. Re1+ {[%emt 0:00:00]} Kd6 {[%emt 0:00:07]} 51. Bh1 {[%emt 0:00:00]} Rg7 {[%emt 0:00:20]} 52. Rd1+ {[%emt 0:00:00]} Kc7 {[%emt 0:00:03]} 53. Rd5 {[%emt 0:00:00]} Rg1 {[%emt 0:00:04]} 54. Rxc5+ {[%emt 0:00:00]} Kb8 {[%emt 0:00:15]} 55. Bd5 {[%emt 0:00:00]} h1=Q {[%emt 0:00:02]} 56. Bxh1 {[%emt 0:06:00]} Rh2+ {[%emt 1:05:23] Gewichteter Fehlerwert: Weiß=0.72/Schwarz=0.19 (sehr präzise) .  Fehler:       	Weiß=7     	Schwarz=2     Ungenau:       	Weiß=5     	Schwarz=3     OK:         	Weiß=7     	Schwarz=17    Bester:       	---       	Schwarz=3} 0-1

[Event "Bijnor Open 2024"]
[Site "Bijnor"]
[Date "2024.03.17"]
[Round "1.2"]
[White "Neelash Saha"]
[Black "Shreyansh Alsisaria"]
[Result "1-0"]
[ECO "A11"]
[WhiteElo "2463"]
[BlackElo "1486"]
[Annotator "TA"]
[PlyCount "71"]
[EventDate "2024.03.17"]
[EventCountry "IND"]
[SourceTitle "playchess.com"]
[Source "ChessBase"]
[SourceQuality "1"]
[TimeControl "5400+30"]

{[%evp 9,71,39,41,20,29,14,20,16,56,60,61,54,102,100,94,77,118,95,185,180,171,32,110,100,116,101,97,108,96,65,237,80,100,87,294,298,294,235,224,235,225,214,362,352,314,310,317,294,287,277,492,477,495,489,492,497,506,495,843,812,887,879,970,956]} 1. Nf3 {[%emt 0:00:09]} d5 {[%emt 0:01:14]} 2. e3 {[%emt 0:00:51]} e6 {[%emt 0:01:11]} 3. c4 {[%emt 0:00:13]} c6 {[%emt 0:00:47]} 4. b3 {[%emt 0:00:16]} f5 {[%emt 0:01:40]} 5. Bb2 {[%emt 0:00:22]} Nf6 {[%emt 0:00:42]} 6. h3 {[%emt 0:00:46][%cal Bh2h3,Bh3g4,Bg4g5][%mdl 32]} Be7 {[%emt 0:01:18]} 7. d3 {[%emt 0:05:10]} Nbd7 {[%emt 0:03:16]} 8. Nbd2 {[%emt 0:00:35][%cal Og2g4] The position is equal.} c5 {[%emt 0:03:27] [#]} 9. g4 $1 {[%emt 0:02:03]} O-O {[%emt 0:05:46]} 10. Rg1 {[%emt 0:01:24]} fxg4 {[%emt 0:04:35]} (10... Ne8 $14) 11. hxg4 $16 {[%emt 0:00:09]} Ne8 {[%emt 0:01:45][%cal Bf6e8,Be8d6,Bd6f5][%mdl 32]} 12. g5 {[%emt 0:00:19]} Nd6 {[%emt 0:01:56]} 13. Bh3 {[%emt 0:01:04]} Nb6 {[%emt 0:02:04]} (13... Nb8 $16) 14. Qc2 {[%emt 0:01:03]} Nf5 {[%emt 0:00:53]} 15. Qc3 {[%emt 0:04:10]} (15. O-O-O $18) 15... d4 {[%emt 0:06:58]} 16. exd4 {[%emt 0:00:05]} cxd4 {[%emt 0:00:31]} 17. Qa5 $36 {[%emt 0:06:49][%mdl 2048] White is in control.} (17. Nxd4 {keeps more tension.} Bb4 18. Qxb4 Nxd4 19. Qc5) 17... Qd6 {[%emt 0:02:12]} 18. Ne4 {[%emt 0:03:17]} Qf4 {[%emt 0:03:42]} 19. Bg4 {[%emt 0:00:20] White is more active.} Rd8 {[%emt 0:01:32]} ({Of course not} 19... Ne3 20. Bc1 $16) ({Better is} 19... Nd7 $1 $14) 20. Qe5 $2 {[%emt 0:04:58]} (20. Nf6+ $18 Bxf6 21. gxf6) 20... Qxe5 {[%emt 0:01:32]} 21. Nxe5 {[%emt 0:00:03]} Bd6 $2 {[%emt 0:00:34]} (21... Nd7 $16 22. Nf3 Nf8) 22. Nxd6 $18 {[%emt 0:01:46]} Rxd6 {[%emt 0:00:12]} 23. Kd2 {[%emt 0:00:40]} Nd7 {[%emt 0:00:45]} 24. Nf3 {[%emt 0:00:34]} Nc5 {[%emt 0:01:50]} 25. Rge1 {[%emt 0:00:21] Strongly threatening Bxf5.} Kf8 {[%emt 0:00:51]} (25... b6 {was worth a try.} 26. Ba3 Bb7) 26. Ba3 {[%emt 0:06:16]} b6 {[%emt 0:00:33]} 27. Re5 {[%emt 0:01:07]} Bb7 {[%emt 0:02:33]} 28. Rxc5 {[%emt 0:00:10]} bxc5 {[%emt 0:01:14]} 29. Bxc5 {[%emt 0:00:04] [#] Black must now prevent Bxf5.} Ke8 $2 {[%emt 0:00:29]} (29... Bxf3 {was necessary.} 30. Bxf3 Rad8) 30. Bxd6 {[%emt 0:00:13] White is clearly winning.} Nxd6 {[%emt 0:01:11]} 31. Nxd4 {[%emt 0:00:24]} e5 {[%emt 0:01:12]} 32. Re1 {[%emt 0:00:22]} Nf7 {[%emt 0:02:09]} 33. Ne6 {[%emt 0:00:09]} Kd7 {[%emt 0:00:55]} (33... Bc8 $142 34. Nxg7+ Kf8 35. Bxc8 Rxc8) 34. Nc5+ {[%emt 0:00:08]} Kc7 {[%emt 0:01:19]} 35. Nxb7 {[%emt 0:00:06]} Kxb7 {[%emt 0:00:08]} 36. Bf3+ {[%emt 0:00:02] Weighted Error Value: White=0.23 (precise) /Black=0.49.  Loses game:     	---       	Black=2      Mistake:       	White=2     	Black=6      Inaccurate:     	White=1     	Black=2      OK:         	White=10    	Black=9      Best:        	White=3     	Black=1} 1-0

[Event "Bijnor Open 2024"]
[Site "Bijnor"]
[Date "2024.03.17"]
[Round "1.3"]
[White "Arun, Saxena"]
[Black "Laxman, R.R."]
[Result "0-1"]
[ECO "A47"]
[WhiteElo "1971"]
[BlackElo "2331"]
[Annotator "TA"]
[PlyCount "58"]
[EventDate "2024.03.17"]
[EventCountry "IND"]
[SourceTitle "playchess.com"]
[Source "ChessBase"]
[SourceQuality "1"]
[TimeControl "5400+30"]

{[%evp 9,58,8,30,7,18,-4,0,-37,-18,-91,-101,-87,-107,-133,-130,-136,-136,-292,-256,-311,-270,-533,-377,-387,-369,-586,-579,-696,-689,-670,-620,-655,-660,-989,-1016,-1013,-1022,-907,-568,-567,-469,-443,-358,-353,-348,-29987,-29988,-29988,-29989,-29990,-29991]} 1. d4 {[%emt 0:00:19]} Nf6 {[%emt 0:00:08]} 2. Nf3 {[%emt 0:00:59]} e6 {[%emt 0:00:09]} 3. Bf4 {[%emt 0:01:26]} b6 {[%emt 0:00:10]} 4. e3 {[%emt 0:01:28]} Bb7 {[%emt 0:00:07]} 5. Be2 {[%emt 0:00:58]} g6 {[%emt 0:00:17]} 6. Nbd2 {[%emt 0:01:09]} Bg7 {[%emt 0:00:12]} 7. Bg5 {[%emt 0:06:33]} d6 {[%emt 0:00:29]} 8. c4 {[%emt 0:01:13] The position is equal.} Nbd7 {[%emt 0:00:22]} 9. e4 {[%emt 0:03:58]} h6 $1 $17 {[%emt 0:00:22]} 10. Bxf6 {[%emt 0:03:26]} Qxf6 {[%emt 0:00:23]} 11. Qc2 {[%emt 0:02:29]} c5 {[%emt 0:02:32] Black is more active.} 12. Nb3 {[%emt 0:02:14]} O-O {[%emt 0:01:15][%cal Rc5d4]} 13. O-O-O $2 {[%emt 0:03:51] [#]} (13. Rd1 $17) 13... Qf4+ {[%emt 0:00:31]} 14. Rd2 {[%emt 0:01:39]} Bxe4 {[%emt 0:00:18] This pair of bishops is nice.} ({Much less strong is} 14... Qxe4 15. Qxe4 Bxe4 16. dxc5 $19) 15. Qd1 {[%emt 0:06:35]} (15. g3 {only move.} Bxc2 16. gxf4 Bxb3 17. axb3) 15... cxd4 {[%emt 0:00:34]} 16. g3 {[%emt 0:02:42]} Qf6 {[%emt 0:00:26]} 17. Nbxd4 {[%emt 0:04:08]} (17. Nfxd4 $142 Bxh1 (17... Qxf2 18. Bf3 $16) 18. Qxh1) 17... Rac8 $19 {[%emt 0:00:17]} 18. Nb5 {[%emt 0:02:54]} Bxf3 {[%emt 0:00:08]} 19. Bxf3 {[%emt 0:00:32]} Rxc4+ {[%emt 0:00:02]} 20. Nc3 {[%emt 0:00:56]} Rfc8 {[%emt 0:01:23]} 21. Be2 {[%emt 0:06:55]} Rxc3+ {[%emt 0:02:15]} 22. bxc3 {[%emt 0:00:20] White is weak on the dark squares} Qxc3+ {[%emt 0:00:05]} 23. Rc2 {[%emt 0:00:42]} Qb2+ {[%emt 0:00:10]} 24. Kd2 {[%emt 0:00:28]} Qb4+ {[%emt 0:00:06]} 25. Ke3 {[%emt 0:00:58]} Rc3+ {[%emt 0:00:33]} 26. Rxc3 {[%emt 0:00:40]} Qxc3+ {[%emt 0:00:02]} ({But not} 26... Bxc3 27. Kf3 $19) 27. Qd3 $2 {[%emt 0:00:42] [#]} (27. Bd3 $19) 27... Bd4+ {[%emt 0:00:18] Black mates.} 28. Kf4 {[%emt 0:01:16]} g5+ {[%emt 0:00:03]} 29. Kg4 {[%emt 0:00:28]} Ne5+ {[%emt 0:00:03] White did not feel at home in the position after the opening.   Weighted Error Value: White=0.88/Black=0.63.  Mistake:       	White=5     	---        Inaccurate:     	White=1     	---        OK:         	White=3     	Black=4      Best:        	White=2     	Black=1      Strong:       	---       	Black=1} 0-1

[Event "Bijnor Open 2024"]
[Site "Bijnor"]
[Date "2024.03.17"]
[Round "1.4"]
[White "Vrashank Chouhan"]
[Black "Tapadiya Earth"]
[Result "*"]
[ECO "D10"]
[WhiteElo "2330"]
[BlackElo "1477"]
[Annotator "TA"]
[PlyCount "41"]
[EventDate "2024.03.17"]
[EventCountry "IND"]
[SourceTitle "playchess.com"]
[Source "ChessBase"]
[SourceQuality "1"]
[TimeControl "5400+30"]

{[%evp 9,41,18,25,25,32,36,39,39,68,67,70,50,47,0,58,40,39,-16,-9,-93,53,32,18,24,138,142,169,159,280,238,296,293,306,309]} 1. d4 {[%emt 0:00:11]} Nf6 {[%emt 1:08:20]} 2. Bf4 {[%emt 0:00:08]} d5 {[%emt 0:00:25]} 3. e3 {[%emt 0:00:06]} Bf5 {[%emt 0:00:17]} 4. c4 {[%emt 0:00:58]} c6 {[%emt 0:00:27]} 5. Nc3 {[%emt 0:00:10]} e6 {[%emt 0:00:23]} 6. Qb3 {[%emt 0:00:24]} Qb6 {[%emt 0:01:04]} 7. c5 {[%emt 0:00:34]} Qxb3 {[%emt 0:00:53]} 8. axb3 {[%emt 0:00:02] White is slightly better.} Nbd7 {[%emt 0:00:11]} 9. b4 {[%emt 0:01:12] White is more active.} Be7 {[%emt 0:00:44]} 10. h3 {[%emt 0:00:39]} O-O {[%emt 0:01:08][%cal Oe6e5]} 11. b5 {[%emt 0:01:09]} (11. g4 $14 Bg6 12. f3) 11... Ne4 {[%emt 0:03:09]} ({Black should try} 11... e5 $1 $11 12. dxe5 Ne4) 12. Nxe4 {[%emt 0:03:19]} Bxe4 {[%emt 0:00:14]} 13. bxc6 {[%emt 0:01:03]} (13. b4 $14) 13... bxc6 $11 {[%emt 0:00:11][%cal Oe6e5] aiming for ...e5!} 14. b4 {[%emt 0:00:19] [#]} (14. Bc7 $11 {keeps the balance.}) 14... f6 {[%emt 0:02:37]} (14... e5 $1 $17 {[%cal Re5f4]} 15. f3 exf4 16. fxe4 dxe4 (16... fxe3 17. exd5 cxd5 18. Bb5 $16) 17. exf4 Rfb8) 15. b5 {[%emt 0:01:16]} e5 {[%emt 0:01:17]} 16. Bg3 {[%emt 0:01:56]} exd4 {[%emt 0:14:59]} (16... Rfc8 $11) 17. exd4 $16 {[%emt 0:00:52]} Nxc5 {[%emt 0:00:03]} 18. dxc5 {[%emt 0:03:38]} Bxc5 {[%emt 0:00:03]} (18... cxb5 $16 19. f3 (19. Bxb5 Bxc5 20. f3 Bc2 $18) 19... Bc2) 19. f3 {[%emt 0:02:03]} Bg6 {[%emt 0:02:05]} 20. bxc6 {[%emt 0:00:36]} Rfe8+ {[%emt 0:00:32]} 21. Kd1 {[%emt 0:00:32] Weighted Error Value: White=0.29 (precise) /Black=0.50.  Mistake:       	White=3     	Black=4      Inaccurate:     	---       	Black=1      OK:         	White=4     	Black=3      Best:        	White=1     	---} *

[Event "Bijnor Open 2024"]
[Site "Bijnor"]
[Date "2024.03.17"]
[Round "1.5"]
[White "Viyom Bansal"]
[Black "Sai Agni Jeevitesh, J."]
[Result "0-1"]
[ECO "E20"]
[WhiteElo "1474"]
[BlackElo "2285"]
[Annotator "RC"]
[PlyCount "162"]
[EventDate "2024.03.17"]
[EventCountry "IND"]
[SourceTitle "playchess.com"]
[Source "ChessBase"]
[SourceQuality "1"]
[TimeControl "5400+30"]

1. d4 {[%emt 0:00:04]} Nf6 {[%emt 0:00:12]} 2. c4 {[%emt 0:00:07]} e6 {[%emt 0:00:07]} 3. Nc3 {[%emt 0:00:09]} Bb4 {[%emt 0:00:09]} 4. Bd2 {[%emt 0:00:22]} b6 {[%emt 0:01:51]} 5. a3 {[%emt 0:00:04]} Bxc3 {[%emt 0:00:17]} 6. Bxc3 {[%emt 0:00:06]} Bb7 {[%emt 0:00:10]} 7. f3 {[%emt 0:00:14]} Nh5 {[%emt 0:01:42]} 8. Nh3 {[%emt 0:00:46]} f5 {[%emt 0:00:21]} 9. e3 {[%emt 0:00:45]} O-O {[%emt 0:01:12]} 10. d5 {[%emt 0:03:41]} Qe7 {[%emt 0:03:48]} 11. Qd2 {[%emt 0:04:07]} exd5 {[%emt 0:04:57]} 12. cxd5 {[%emt 0:00:11]} Re8 {[%emt 0:00:30]} 13. d6 {[%emt 0:01:27]} cxd6 {[%emt 0:02:28]} 14. Bc4+ {[%emt 0:00:31]} Kh8 {[%emt 0:00:25]} 15. O-O-O {[%emt 0:00:20]} Nc6 {[%emt 0:06:07]} 16. f4 {[%emt 0:05:41]} Na5 {[%emt 0:02:54]} 17. Ba2 {[%emt 0:00:24]} Nf6 {[%emt 0:08:38]} 18. Ng5 {[%emt 0:02:30]} d5 {[%emt 0:02:10]} 19. Rde1 {[%emt 0:03:00]} Rac8 {[%emt 0:00:50]} 20. Kb1 {[%emt 0:00:15]} Ne4 {[%emt 0:04:29]} 21. Nxe4 {[%emt 0:00:26]} Qxe4+ {[%emt 0:00:08]} 22. Ka1 {[%emt 0:00:33]} Nc4 {[%emt 0:00:52]} 23. Bxc4 {[%emt 0:01:09]} Qxc4 {[%emt 0:01:00]} 24. Rc1 {[%emt 0:00:18]} Qe4 {[%emt 0:02:00]} 25. Rhe1 {[%emt 0:00:26]} Rc6 {[%emt 0:01:00]} 26. g3 {[%emt 0:02:11]} Ba6 {[%emt 0:02:01]} 27. Qd4 {[%emt 0:00:49]} Qxd4 {[%emt 0:00:46]} 28. Bxd4 {[%emt 0:00:07]} Kg8 {[%emt 0:02:51]} 29. Rc3 {[%emt 0:02:43]} Ree6 {[%emt 0:00:36]} 30. Rd1 {[%emt 0:04:42]} Kf7 {[%emt 0:01:20]} 31. Kb1 {[%emt 0:02:17]} Be2 {[%emt 0:02:31]} 32. Rd2 {[%emt 0:01:12]} Bf3 {[%emt 0:00:08]} 33. Rf2 {[%emt 0:01:31]} Rxc3 {[%emt 0:05:17]} 34. bxc3 {[%emt 0:00:12]} Be4+ {[%emt 0:00:07]} 35. Kb2 {[%emt 0:00:21]} h5 {[%emt 0:02:47]} 36. a4 {[%emt 0:00:44]} h4 {[%emt 0:01:21]} 37. Rf1 {[%emt 0:02:54]} h3 {[%emt 0:01:49]} 38. Rf2 {[%emt 0:00:37]} Bg2 {[%emt 0:01:01]} 39. Ka3 {[%emt 0:01:11]} Rg6 {[%emt 0:04:17]} 40. Rb2 {[%emt 0:01:55]} Rc6 {[%emt 0:05:08]} 41. Rb4 {[%emt 0:01:51]} Kg6 {[%emt 0:00:59]} 42. Rb2 {[%emt 0:01:02]} Kh6 {[%emt 0:00:40]} 43. Rf2 {[%emt 0:00:26]} Rg6 {[%emt 0:00:18]} 44. Rd2 {[%emt 0:00:26]} Kh5 {[%emt 0:00:06]} 45. Rb2 {[%emt 0:01:21]} Kg4 {[%emt 0:00:40]} 46. Rf2 {[%emt 0:00:16]} Kh5 {[%emt 0:00:11]} 47. Rb2 {[%emt 0:00:50]} Rg4 {[%emt 0:00:13]} 48. Rd2 {[%emt 0:00:41]} g6 {[%emt 0:04:05]} 49. Bf6 {[%emt 0:01:08]} Rxg3 {[%emt 0:00:28]} 50. hxg3 {[%emt 0:00:08]} h2 {[%emt 0:00:09]} 51. Rd1 {[%emt 0:00:20]} h1=Q {[%emt 0:00:49]} 52. Rxh1+ {[%emt 0:00:06]} Bxh1 {[%emt 0:00:02]} 53. Kb4 {[%emt 0:00:25]} Be4 {[%emt 0:00:46]} 54. c4 {[%emt 0:00:23]} dxc4 {[%emt 0:00:05]} 55. Kxc4 {[%emt 0:00:08]} Kg4 {[%emt 0:00:20]} 56. a5 {[%emt 0:02:38]} bxa5 {[%emt 0:03:42]} 57. Kb5 {[%emt 0:00:12]} Kxg3 {[%emt 0:00:11]} 58. Kxa5 {[%emt 0:00:08]} Bd3 {[%emt 0:00:05]} 59. Bd4 {[%emt 0:00:14]} a6 {[%emt 0:00:00]} 60. Kb6 {[%emt 0:00:13]} Kf3 {[%emt 0:00:25]} 61. Kc5 {[%emt 0:00:23]} a5 {[%emt 0:00:42]} 62. Kd6 {[%emt 0:00:40]} Bb5 {[%emt 0:00:06]} 63. Ke5 {[%emt 0:00:29]} a4 {[%emt 0:00:10]} 64. Kf6 {[%emt 0:00:07]} a3 {[%emt 0:01:23]} 65. Kxg6 {[%emt 0:00:05]} Ke4 {[%emt 0:01:00]} 66. Kf6 {[%emt 0:02:49]} a2 {[%emt 0:00:03]} 67. Ba1 {[%emt 0:06:14]} Bd3 {[%emt 0:00:37]} 68. Bd4 {[%emt 0:01:39]} Kd5 {[%emt 0:00:38]} 69. Ba1 {[%emt 0:02:28]} Be4 {[%emt 0:00:24]} 70. Ke7 {[%emt 0:00:38]} Kc4 {[%emt 0:00:32]} 71. Kxd7 {[%emt 0:00:16]} Kb3 {[%emt 0:00:02]} 72. Kd6 {[%emt 0:00:18]} Kc2 {[%emt 0:00:01]} 73. Kc5 {[%emt 0:00:28]} Kb1 {[%emt 0:00:02]} 74. Bh8 {[%emt 0:01:01]} a1=Q {[%emt 0:00:05]} 75. Bxa1 {[%emt 0:00:07]} Kxa1 {[%emt 0:00:03]} 76. Kb4 {[%emt 0:00:37]} Kb2 {[%emt 0:00:03]} 77. Kc4 {[%emt 0:00:26]} Kc2 {[%emt 0:00:02]} 78. Kd4 {[%emt 0:00:17]} Kd2 {[%emt 0:00:01]} 79. Kc4 {[%emt 0:00:14]} Kxe3 {[%emt 0:00:03]} 80. Kc3 {[%emt 0:00:04]} Kxf4 {[%emt 0:00:04]} 81. Kd2 {[%emt 0:00:11]} Ke5 {[%emt 0:30:28]} 0-1

[Event "Bijnor Open 2024"]
[Site "Bijnor"]
[Date "2024.03.17"]
[Round "1.6"]
[White "Vignesh B"]
[Black "Ishika Banga"]
[Result "1-0"]
[ECO "C11"]
[WhiteElo "2209"]
[BlackElo "1470"]
[Annotator "RC"]
[PlyCount "57"]
[EventDate "2024.03.17"]
[EventCountry "IND"]
[SourceTitle "playchess.com"]
[Source "ChessBase"]
[SourceQuality "1"]
[TimeControl "5400+30"]

1. e4 {[%emt 0:00:03]} c5 {[%emt 0:00:08]} 2. f4 {[%emt 0:00:24]} e6 {[%emt 0:01:47]} 3. Nf3 {[%emt 0:00:25]} Nf6 {[%emt 0:01:55]} 4. Nc3 {[%emt 0:00:18]} d5 {[%emt 0:01:36]} 5. e5 {[%emt 0:00:41]} Nfd7 {[%emt 0:01:54]} 6. d4 {[%emt 0:01:33]} cxd4 {[%emt 0:01:37]} 7. Nxd4 {[%emt 0:00:08]} a6 {[%emt 0:01:31]} 8. Be3 {[%emt 0:00:30]} Bb4 {[%emt 0:07:22]} 9. Bd3 {[%emt 0:03:25]} Nc6 {[%emt 0:04:06]} 10. a3 {[%emt 0:00:35]} Bc5 {[%emt 0:03:59]} 11. Be2 {[%emt 0:07:55]} Nxd4 {[%emt 0:13:50]} 12. Bxd4 {[%emt 0:00:07]} Bxd4 {[%emt 0:04:02]} 13. Qxd4 {[%emt 0:00:08]} Qb6 {[%emt 0:01:04]} 14. O-O-O {[%emt 0:00:37]} Qxd4 {[%emt 0:04:00]} 15. Rxd4 {[%emt 0:00:03]} b5 {[%emt 0:01:08]} 16. a4 {[%emt 0:00:19]} bxa4 {[%emt 0:03:00]} 17. Nxa4 {[%emt 0:00:20]} O-O {[%emt 0:00:48]} 18. Kd2 {[%emt 0:03:07]} Bb7 {[%emt 0:03:02]} 19. Ra1 {[%emt 1:19:22]} Rfc8 {[%emt 0:04:17]} 20. Rb4 {[%emt 0:00:00]} Bc6 {[%emt 0:02:41]} 21. Nb6 {[%emt 0:00:00]} Nxb6 {[%emt 0:00:41]} 22. Rxb6 {[%emt 0:00:00]} a5 {[%emt 0:00:58]} 23. Ba6 {[%emt 0:00:00]} Rc7 {[%emt 0:02:40]} 24. Rxa5 {[%emt 0:00:00]} Bd7 {[%emt 0:03:48]} 25. b4 {[%emt 0:00:00]} Bc8 {[%emt 0:01:18]} 26. Bd3 {[%emt 0:00:00]} Rxa5 {[%emt 0:03:42]} 27. bxa5 {[%emt 0:00:00]} g6 {[%emt 0:00:25]} 28. Rb8 {[%emt 0:00:00]} Kg7 {[%emt 0:00:25]} 29. a6 {[%emt 0:00:00]} 1-0